bitfinex/quotes_ETHUSD_20250414
["timestamp","ask_amount","ask_price","bid_price","bid_amount"]
[1744599263252,18.70818,1637.3,1636.8,4.88732]
[1744599263449,7.88641,1637.2,1636.8,9.77475]
[1744599263649,7.88641,1637.2,1636.8,0.977475]
[1744599263948,4.88669,1637.1,1636.8,5.864935]
[1744599264124,7.88641,1637.2,1636.8,10.752405]
[1744599264328,3.0,1637.2,1636.9,4.88717]
[1744599265551,7.88641,1637.2,1636.9,4.88717]
[1744599266356,4.88739,1636.9,1636.6,0.7774]
[1744599266555,4.88739,1636.9,1636.5,4.88846]
[1744599266754,9.7749,1636.9,1636.5,4.88846]
[1744599266957,4.88739,1636.9,1636.5,4.88846]
[1744599267165,4.88739,1636.9,1636.6,4.88817]
[1744599267328,7.88731,1636.9,1636.6,5.865833]
[1744599267527,7.88731,1636.9,1636.5,4.88846]
[1744599267528,12.77479,1636.9,1636.5,4.88846]
[1744599268858,7.88731,1636.9,1636.5,4.88831]
[1744599269071,7.88731,1636.9,1636.6,4.88815]
[1744599269368,3.0,1636.9,1636.6,9.77616]
[1744599269660,5.66002,1637.2,1636.7,4.88764]
[1744599269836,3.0,1637.1,1636.8,5.68292]
[1744599270259,7.8868,1637.1,1636.8,0.7955]
[1744599271362,3.0,1637.1,1636.8,5.68297]
[1744599271563,3.0,1637.1,1636.8,10.57042]
[1744599271734,3.0,1637.1,1636.8,11.627462]
[1744599271934,3.0,1637.1,1636.8,6.739992]
[1744599272167,5.66002,1637.2,1636.8,6.739992]
[1744599272566,3.0,1637.1,1636.8,11.627452]
[1744599272872,3.0,1637.1,1636.8,6.739992]
[1744599273441,3.0,1637.1,1636.8,11.627472]
[1744599273745,8.66031,1637.1,1636.8,1.057042]
[1744599273958,13.54719,1637.1,1636.7,4.88784]
[1744599274153,3.7736,1637.1,1636.6,0.7955]
[1744599274354,3.7736,1637.1,1636.8,4.88728]
[1744599274870,8.66029,1637.1,1636.8,4.88728]
[1744599275268,3.7736,1637.1,1636.8,9.77471]
[1744599275442,3.7736,1637.1,1636.8,5.864751]
[1744599275642,3.0,1637.1,1636.8,10.752221]
[1744599275843,7.88672,1637.1,1636.8,5.864751]
[1744599276070,3.0,1637.1,1636.8,9.7747]
[1744599276243,7.88676,1637.1,1636.8,4.88728]
[1744599278173,3.0,1637.1,1636.8,5.68948]
[1744599278371,7.88675,1637.1,1636.8,0.8022]
[1744599278674,4.88701,1637.0,1636.6,5.69033]
[1744599278839,3.0,1636.9,1636.6,5.69022]
[1744599279479,4.88645,1637.2,1636.6,0.8022]
[1744599279640,3.0,1637.1,1636.8,4.88735]
[1744599279846,7.88674,1637.1,1636.8,4.88735]
[1744599280163,12.77363,1637.1,1636.7,4.88784]
[1744599282898,3.0,1636.9,1636.7,4.88784]
[1744599285056,3.0,1637.1,1636.8,4.88736]
[1744599285581,7.8867,1637.1,1636.8,4.88736]
[1744599285780,3.0,1637.1,1636.8,4.88736]
[1744599286113,3.0,1637.1,1636.8,9.77478]
[1744599286276,3.0,1637.1,1636.8,5.87094705]
[1744599286469,3.0,1637.2,1637.0,4.88689]
[1744599286861,3.0,1637.2,1637.0,9.77376]
[1744599287612,4.88697,1637.1,1636.7,4.88785]
[1744599288214,9.77383,1637.1,1636.7,4.88776]
[1744599288408,4.88686,1637.1,1636.7,4.88776]
[1744599288613,4.88686,1637.1,1636.7,9.77548]
[1744599288812,4.88686,1637.1,1636.7,4.88772]
[1744599289114,6.353167,1637.1,1636.7,4.88772]
[1744599289292,6.353167,1637.1,1636.7,9.7755]
[1744599289488,6.353167,1637.1,1636.8,4.88756]
[1744599289799,7.88641,1637.2,1636.9,4.88723]
[1744599290004,7.88641,1637.2,1636.9,5.71523]
[1744599290513,7.88641,1637.2,1636.8,4.88756]
[1744599290715,4.8867,1637.1,1636.8,4.88756]
[1744599290909,3.0,1637.2,1636.9,4.88724]
[1744599291116,7.88657,1637.2,1636.8,9.77488]
[1744599291414,7.88657,1637.2,1636.8,4.88743]
[1744599291613,7.88657,1637.2,1636.8,9.77485]
[1744599292714,3.0,1637.2,1636.9,4.887]
[1744599293219,7.8864,1637.2,1636.9,4.887]
[1744599293382,12.77299,1637.2,1636.8,4.88757]
[1744599293586,4.88669,1637.1,1636.8,4.88757]
[1744599294017,0.7736,1637.0,1636.3,0.828]
[1744599294216,4.88758,1636.9,1636.6,4.88817]
[1744599294420,3.0,1636.9,1636.6,5.71604]
[1744599294720,3.0,1637.0,1636.8,4.88751]
[1744599295016,8.66019,1637.2,1636.8,4.88745]
[1744599295218,4.8868,1637.1,1636.7,4.88787]
[1744599295518,4.8868,1637.1,1636.7,9.77564]
[1744599295718,13.54653,1637.2,1636.8,4.88757]
[1744599295892,16.334383,1637.2,1636.8,4.88757]
[1744599297422,11.447893,1637.2,1636.8,4.88747]
[1744599297725,6.561453,1637.2,1636.6,1.316817]
[1744599297921,3.0,1637.1,1636.6,0.828]
[1744599298121,3.0,1636.8,1636.4,0.828]
[1744599298294,4.8883,1636.6,1636.2,9.77863]
[1744599298620,4.8883,1636.6,1636.3,4.88906]
[1744599299125,4.88788,1636.7,1636.3,9.77797]
[1744599299323,4.88788,1636.7,1636.4,4.88877]
[1744599299704,4.88788,1636.7,1636.3,4.88891]
[1744599299909,9.77594,1636.7,1636.3,5.949537]
[1744599300111,0.7736,1636.9,1636.5,4.88821]
[1744599300316,4.88788,1636.8,1636.4,4.88875]
[1744599300489,3.0,1636.7,1636.4,4.88875]
[1744599300694,7.88798,1636.7,1636.4,4.88875]
[1744599301023,12.77604,1636.7,1636.3,5.949607]
[1744599301224,12.77604,1636.7,1636.2,0.828]
[1744599301225,3.0,1636.5,1636.2,0.828]
[1744599301447,3.0,1636.5,1636.1,0.02]
[1744599301448,8.66297,1636.2,1636.1,0.02]
[1744599301593,16.80697,1636.2,1636.1,0.02]
[1744599302393,11.144,1636.2,1636.1,0.02]
[1744599303534,6.17,1636.5,1636.1,0.02]
[1744599303718,60.55,1636.7,1636.2,0.828]
[1744599303928,11.05702,1637.0,1636.6,5.71606]
[1744599304235,3.0,1637.0,1636.7,4.88778]
[1744599304533,8.9186,1637.1,1636.8,4.88743]
[1744599304898,58.07253,1637.4,1636.8,4.94864364]
[1744599305105,4.88672,1637.1,1636.7,4.88785]
[1744599305320,4.88639,1637.2,1636.7,4.88785]
[1744599305525,4.88639,1637.2,1636.8,0.488785]
[1744599305853,4.88639,1637.2,1636.8,5.376355]
[1744599306328,7.88609,1637.3,1636.8,5.376235]
[1744599306530,3.0,1637.3,1636.9,4.88701]
[1744599306744,3.0,1637.3,1636.9,5.43069813]
[1744599306902,7.88613,1637.3,1636.9,5.43069813]
[1744599307103,4.88613,1637.3,1636.9,5.43069813]
[1744599307403,53.1866,1637.4,1637.0,5.71253]
[1744599307613,3.0,1637.3,1637.0,0.8257]
[1744599309228,3.0,1637.3,1637.0,5.71266]
[1744599309534,3.0,1637.4,1637.0,6.83314404]
[1744599310113,4.88614,1637.3,1637.0,1.94618404]
[1744599310309,4.88614,1637.3,1637.0,0.8257]
[1744599311231,7.8859,1637.4,1637.0,0.8257]
[1744599311526,7.8859,1637.4,1637.0,5.71263]
[1744599311727,7.8859,1637.4,1637.0,0.8257]
[1744599312330,4.88626,1637.3,1636.8,5.71327]
[1744599312503,7.88656,1637.2,1636.8,5.71327]
[1744599312899,4.88728,1636.9,1636.8,0.8257]
[1744599313129,4.88728,1636.9,1636.3,3.44803807]
[1744599313130,3.0,1636.9,1636.6,5.71367]
[1744599313295,3.0,1636.9,1636.7,4.88778]
[1744599313495,3.0,1636.9,1636.8,4.88758]
[1744599313803,7.88671,1637.1,1636.7,4.88778]
[1744599314014,8.752741,1637.1,1636.7,4.88778]
[1744599314212,0.866031,1637.1,1636.6,0.8257]
[1744599314507,4.88809,1636.7,1636.4,0.8257]
[1744599314895,3.0,1636.7,1636.4,5.71442]
[1744599315107,3.0,1636.7,1636.4,0.8257]
[1744599315531,7.88793,1636.7,1636.4,0.8257]
[1744599316532,3.0,1636.7,1636.4,5.71436]
[1744599316733,3.0,1636.7,1636.4,0.8257]
[1744599316734,7.88803,1636.7,1636.4,0.8257]
[1744599317634,3.0,1636.7,1636.4,5.71432]
[1744599318102,7.8879,1636.7,1636.4,0.8257]
[1744599318303,5.66202,1636.6,1636.2,4.88918]
[1744599318615,5.66202,1636.6,1636.2,10.351898]
[1744599319135,0.7736,1636.6,1636.2,10.351898]
[1744599319705,0.7736,1636.6,1636.1,0.8457]
[1744599319706,4.88871,1636.5,1636.1,0.8457]
[1744599319903,4.88878,1636.4,1636.1,0.8457]
[1744599320354,3.0,1636.4,1636.1,0.02]
[1744599320524,3.0,1636.4,1636.1,4.90952]
[1744599320723,3.0,1636.4,1636.2,4.88926]
[1744599321101,3.0,1636.4,1636.1,4.90952]
[1744599321307,12.77782,1636.4,1636.1,0.02]
[1744599321508,7.88879,1636.4,1636.1,0.02]
[1744599321812,3.0,1636.4,1636.1,4.90963]
[1744599322017,7.88878,1636.4,1636.1,4.90963]
[1744599322616,3.0,1636.5,1636.2,4.88931]
[1744599322818,3.0,1636.5,1636.1,5.89568377]
[1744599323020,4.8888,1636.4,1636.1,1.00605377]
[1744599323219,3.0,1636.4,1636.1,1.00605377]
[1744599323519,3.0,1636.4,1636.1,4.90955]
[1744599323724,3.0,1636.6,1636.3,5.72187]
[1744599323925,3.0,1636.7,1636.4,4.88876]
[1744599324667,4.88762,1636.8,1636.4,4.88876]
[1744599324852,11.05701,1637.0,1636.6,4.88817]
[1744599325018,11.05701,1637.0,1636.7,4.8877]
[1744599325019,6.17,1637.0,1636.7,4.8877]
[1744599325565,11.05715,1637.0,1636.6,10.60914]
[1744599325735,3.0,1636.9,1636.7,5.948774]
[1744599325937,3.0,1636.9,1636.7,10.836524]
[1744599326357,60.528,1637.2,1636.8,4.88749]
[1744599326665,3.0,1637.1,1636.8,4.88749]
[1744599327136,10.5442,1637.6,1637.2,4.88626]
[1744599327350,10.5442,1637.6,1637.1,4.88649]
[1744599327547,10.5442,1637.6,1637.1,9.77301]
[1744599327749,4.88549,1637.5,1637.0,4.88697]
[1744599327950,0.488549,1637.4,1636.9,5.7199]
[1744599328257,9.7715,1637.5,1637.1,4.88657]
[1744599328552,4.88571,1637.5,1637.1,4.88664]
[1744599328928,9.77145,1637.5,1637.1,4.88664]
[1744599329131,9.77145,1637.5,1637.0,4.88679]
[1744599329455,0.977145,1637.4,1637.1,4.88667]
[1744599329756,3.0,1637.4,1637.1,4.88667]
[1744599330868,7.8858,1637.4,1637.0,4.88679]
[1744599331224,7.8858,1637.4,1637.0,9.7736]
[1744599331456,7.8858,1637.4,1637.0,4.88679]
[1744599331658,9.162951,1637.4,1637.0,4.88679]
[1744599332155,14.048991,1637.4,1637.0,4.88679]
[1744599332369,14.048951,1637.4,1637.0,4.88679]
[1744599332949,14.048951,1637.4,1636.9,5.72007]
[1744599332950,4.277151,1637.4,1636.9,5.72007]
[1744599333155,3.0,1637.4,1636.9,5.72007]
[1744599333525,4.88619,1637.3,1636.9,5.72007]
[1744599333730,9.7725,1637.3,1636.9,4.88727]
[1744599333931,4.88688,1637.1,1636.7,5.72066]
[1744599334165,5.94157,1637.1,1636.7,5.72066]
[1744599334382,4.88709,1637.0,1636.7,0.8328]
[1744599334540,3.7736,1637.2,1636.9,4.88716]
[1744599335043,3.0,1637.3,1637.0,4.88688]
[1744599335451,3.0,1637.3,1637.0,9.77368]
[1744599336142,3.0,1637.3,1637.0,4.8868]
[1744599336342,3.0,1637.3,1637.0,9.77362]
[1744599336543,3.0,1637.3,1637.0,4.8868]
[1744599337467,7.88613,1637.3,1636.9,4.88725]
[1744599338064,8.752103,1637.3,1636.9,4.88725]
[1744599338264,4.88681,1637.1,1636.7,0.8328]
[1744599338561,9.77437,1637.0,1636.7,0.8328]
[1744599338761,0.7736,1637.1,1636.5,0.8074]
[1744599338762,4.88776,1636.8,1636.5,0.8074]
[1744599338960,4.88829,1636.6,1636.3,0.8074]
[1744599340565,4.88829,1636.6,1636.3,5.69647]
[1744599341962,4.88829,1636.6,1636.1,0.02]
[1744599341963,7.88937,1636.2,1636.1,0.02]
[1744599342365,9.21297,1636.2,1636.1,0.02]
[1744599342556,16.793185,1636.2,1636.1,0.02]
[1744599342753,17.09661723,1636.2,1636.1,0.02]
[1744599343337,6.21447,1635.7,1635.6,0.3996769]
[1744599343547,26.92860467,1635.7,1635.6,0.3996769]
[1744599345272,27.38159527,1635.7,1635.6,0.3996769]
[1744599345463,5.66596,1635.2,1635.1,0.02]
[1744599345659,8.66596,1635.2,1635.1,0.02]
[1744599346475,16.76596,1635.2,1635.1,0.02]
[1744599346840,17.31596,1635.2,1635.1,0.02]
[1744599347036,19.536773,1635.2,1635.1,0.02]
[1744599347244,25.706773,1635.2,1635.1,0.02]
[1744599347443,7.89279,1635.1,1634.5,4.89416]
[1744599347643,7.89279,1635.1,1634.6,4.89414]
[1744599347875,0.55,1635.0,1634.3,0.8074]
[1744599348049,7.89417,1634.6,1634.4,0.11575992]
[1744599348247,7.89419,1634.6,1634.3,0.8074]
[1744599348575,3.0,1634.8,1634.4,0.12601644]
[1744599348774,3.0,1634.8,1634.4,4.89459]
[1744599348948,3.0,1634.8,1634.5,0.1255928]
[1744599349355,4.51999147,1635.0,1634.5,5.0197728]
[1744599349648,4.51999147,1635.0,1634.5,0.1255928]
[1744599349649,9.41300147,1635.0,1634.5,0.1255928]
[1744599350055,3.0,1634.8,1634.5,0.1255928]
[1744599350467,3.0,1634.8,1634.4,4.8947]
[1744599350649,3.0,1634.8,1634.5,0.12585515]
[1744599350856,13.576765,1634.8,1634.5,0.12585515]
[1744599351058,8.682935,1634.8,1634.3,10.59705]
[1744599351264,3.0,1634.2,1634.1,0.02]
[1744599351461,7.89536,1634.2,1634.1,0.02]
[1744599351649,3.0,1634.4,1634.1,0.02]
[1744599352347,7.89417,1634.6,1634.1,5.66667]
[1744599352660,9.62074017,1634.6,1634.1,5.66667]
[1744599353379,3.0,1634.6,1634.2,4.89522]
[1744599353681,19.92616,1634.7,1634.2,4.89522]
[1744599353682,4.89389,1634.7,1634.2,4.89522]
[1744599353980,3.0,1634.6,1634.2,9.79043]
[1744599354178,4.89389,1634.7,1634.3,4.89505]
[1744599354383,4.89408,1634.7,1634.1,5.66669]
[1744599354679,7.89431,1634.6,1634.1,7.043959]
[1744599354886,7.89431,1634.6,1634.1,0.7711]
[1744599354887,4.89494,1634.4,1634.1,0.7711]
[1744599355052,4.89506,1634.3,1634.1,0.02]
[1744599355251,4.89494,1634.4,1634.1,0.02]
[1744599355252,3.0,1634.4,1634.1,0.02]
[1744599355455,7.89478,1634.4,1634.1,0.02]
[1744599355701,4.89507,1634.3,1634.1,0.02]
[1744599355859,7.89478,1634.4,1634.1,0.02]
[1744599356058,9.62946048,1634.4,1634.1,0.02]
[1744599356583,3.0,1634.4,1634.1,4.91562]
[1744599357167,3.0,1634.4,1634.1,0.02]
[1744599357366,3.0,1634.4,1634.2,0.12080111]
[1744599357566,7.89486,1634.4,1634.2,0.12080111]
[1744599357860,3.0,1634.4,1634.3,0.12043301]
[1744599358059,13.75848,1634.6,1634.3,0.87153301]
[1744599358060,3.0,1634.5,1634.3,0.87153301]
[1744599358264,8.106,1634.6,1634.3,10.54083]
[1744599358460,3.0,1634.7,1634.4,5.01416248]
[1744599358766,3.0,1634.8,1634.5,4.89434]
[1744599359156,4.89326,1634.9,1634.6,0.11650131]
[1744599359661,3.0,1634.8,1634.6,0.11650131]
[1744599360286,3.0,1634.8,1634.6,5.01065131]
[1744599360586,4.89176,1635.4,1634.7,1.25216513]
[1744599360891,4.89372,1634.8,1634.3,4.89503]
[1744599361087,4.89389,1634.7,1634.3,5.64613]
[1744599361463,4.89419,1634.6,1634.3,0.7511]
[1744599361787,4.89458,1634.5,1634.1,0.7711]
[1744599361971,4.89416,1634.6,1634.1,5.66665]
[1744599362205,0.489416,1634.5,1634.1,10.56209]
[1744599362617,3.489416,1634.5,1634.1,0.7711]
[1744599362819,9.78988,1634.4,1634.1,0.02]
[1744599363083,7.89536,1634.2,1634.1,0.02]
[1744599363308,4.354873,1634.2,1634.1,0.02]
[1744599363509,3.0,1634.3,1634.1,0.02]
[1744599363815,7.89513,1634.3,1634.1,0.02]
[1744599364185,12.66609467,1634.2,1634.1,0.02]
[1744599364391,18.83609467,1634.2,1634.1,0.02]
[1744599364593,14.83896,1634.2,1634.1,0.02]
[1744599364791,9.868769,1634.2,1634.1,0.02]
[1744599365417,57.91641,1634.6,1634.2,4.89524]
[1744599365418,4.89417,1634.6,1634.2,4.89524]
[1744599365590,9.78855,1634.6,1634.2,4.89524]
[1744599365791,4.89449,1634.5,1634.1,4.91545]
[1744599365991,4.89449,1634.5,1634.1,9.8109]
[1744599366520,3.0,1634.4,1634.1,9.8109]
[1744599366818,3.0,1634.4,1634.2,0.8228]
[1744599367011,4.89527,1634.3,1634.1,0.02]
[1744599367516,4.89536,1634.2,1634.1,0.02]
[1744599367819,4.89479,1634.4,1634.1,0.02]
[1744599368019,3.0,1634.3,1634.1,0.02]
[1744599368188,7.89522,1634.3,1634.1,0.02]
[1744599368918,3.0,1634.3,1634.1,0.02]
[1744599369217,8.684669,1634.3,1634.1,0.02]
[1744599369399,4.89536,1634.2,1634.1,0.02]
[1744599370419,3.0,1634.3,1634.1,0.02]
[1744599370809,4.89417,1634.6,1634.2,4.89533]
[1744599371003,14.50845287,1634.6,1634.1,4.91546]
[1744599371203,3.0,1634.4,1634.1,4.91546]
[1744599371503,3.0,1634.4,1634.1,0.02]
[1744599371822,7.89478,1634.4,1634.1,0.02]
[1744599372426,3.0,1634.4,1634.1,4.91564]
[1744599372622,7.89477,1634.4,1634.1,0.02]
[1744599372823,12.78975,1634.4,1634.1,0.02]
[1744599373120,9.173694,1634.4,1634.1,0.02]
[1744599373322,4.89512,1634.3,1634.1,0.02]
[1744599373522,4.89536,1634.2,1634.1,0.02]
[1744599373704,4.89512,1634.3,1634.1,0.02]
[1744599374023,4.89491,1634.4,1634.1,0.02]
[1744599374219,5.684374,1634.4,1634.1,0.02]
[1744599374424,7.89447,1634.5,1634.1,4.91564]
[1744599374787,12.78919,1634.5,1634.1,0.02]
[1744599374995,4.89476,1634.4,1634.1,0.02]
[1744599375423,3.0,1634.4,1634.2,0.8228]
[1744599376024,7.89477,1634.4,1634.2,0.8228]
[1744599376224,18.3455287,1634.7,1634.2,0.8228]
[1744599376413,18.3455287,1634.7,1634.3,4.89493]
[1744599376414,12.9841,1634.7,1634.3,4.89493]
[1744599376624,14.771867,1634.7,1634.3,4.89493]
[1744599376795,14.771867,1634.7,1634.3,4.95611094]
[1744599377294,14.771867,1634.7,1634.3,4.89493]
[1744599377497,3.0,1634.7,1634.4,4.89474]
[1744599377696,7.89357,1634.8,1634.5,0.8228]
[1744599377896,4.89289,1635.1,1634.5,0.8228]
[1744599378094,4.89289,1635.1,1634.2,6.16]
[1744599378095,4.89289,1635.1,1634.8,0.8228]
[1744599378324,3.0,1635.0,1634.8,0.8228]
[1744599379099,4.89239,1635.2,1634.8,6.777244]
[1744599379304,4.89206,1635.3,1634.9,4.89323]
[1744599379527,3.0,1635.2,1634.9,4.89323]
[1744599379929,52.472,1635.4,1635.0,4.89292]
[1744599380097,9.78318,1635.5,1635.1,5.71534]
[1744599380298,4.89169,1635.5,1635.1,10.6079]
[1744599380601,3.0,1635.5,1635.2,4.89217]
[1744599381395,3.0,1635.7,1635.1,0.8228]
[1744599381625,4.89187,1635.4,1635.1,0.8228]
[1744599381823,7.89134,1635.6,1635.1,0.8228]
[1744599381824,0.44751122,1635.8,1635.1,1.9325702]
[1744599382026,4.891,1635.7,1635.3,4.89203]
[1744599382218,4.89087,1635.7,1635.1,5.71528]
[1744599382416,4.89142,1635.6,1635.1,5.71528]
[1744599382926,3.0,1635.6,1635.3,4.89201]
[1744599383128,4.89089,1635.7,1635.4,0.8228]
[1744599384433,4.89131,1635.6,1635.4,0.8228]
[1744599384644,4.89089,1635.7,1635.4,0.8228]
[1744599385502,4.89141,1635.6,1635.4,0.8228]
[1744599386526,4.89141,1635.6,1635.2,4.89216]
[1744599386527,4.89141,1635.6,1635.2,5.66506]
[1744599386831,4.89228,1635.3,1634.9,0.7729]
[1744599387019,6.170687,1635.3,1634.9,5.66616]
[1744599387224,4.89228,1635.3,1634.9,5.66616]
[1744599388221,4.89248,1635.2,1634.9,0.7729]
[1744599388622,4.89228,1635.3,1634.9,5.66612]
[1744599388921,4.89238,1635.2,1634.9,5.66612]
[1744599389431,4.89228,1635.3,1634.9,5.66597]
[1744599389727,9.78456,1635.3,1634.9,5.66597]
[1744599389932,11.10911853,1635.3,1634.9,5.66597]
[1744599390100,4.8927,1635.1,1634.9,0.7729]
[1744599390303,6.21690853,1635.3,1635.0,0.7729]
[1744599390613,4.89235,1635.3,1635.0,0.7729]
[1744599391748,8.3532853,1635.4,1635.0,0.7729]
[1744599391907,3.0,1635.4,1635.0,5.66584]
[1744599392307,7.89178,1635.4,1635.0,5.66584]
[1744599392509,7.89178,1635.4,1635.0,10.55862]
[1744599392817,3.0,1635.4,1635.0,5.66568]
[1744599393117,7.89187,1635.4,1635.0,5.66568]
[1744599393339,3.0,1635.4,1635.1,4.89264]
[1744599394240,9.48962,1635.4,1635.0,0.7729]
[1744599394542,4.89222,1635.3,1635.0,0.7729]
[1744599394843,9.48962,1635.4,1635.0,10.55857]
[1744599395206,8.087,1635.5,1635.2,4.89235]
[1744599395411,8.087,1635.5,1635.2,9.78457]
[1744599396024,8.087,1635.5,1635.2,4.89222]
[1744599396322,4.89115,1635.7,1635.3,10.53743]
[1744599396520,5.457625,1635.7,1635.3,10.53743]
[1744599396730,8.457625,1635.7,1635.3,10.53743]
[1744599396932,13.348745,1635.7,1635.3,5.64549]
[1744599397314,10.348745,1635.7,1635.3,5.64549]
[1744599397545,1.0348745,1635.6,1635.3,10.53741]
[1744599397845,8.457595,1635.7,1635.3,10.53741]
[1744599398341,8.457595,1635.7,1635.4,4.89174]
[1744599398650,3.0,1635.7,1635.4,4.8916]
[1744599402317,3.0,1635.7,1635.5,4.89144]
[1744599402518,3.0,1635.8,1635.5,4.89133]
[1744599402736,3.0,1635.8,1635.6,4.89117]
[1744599403918,3.0,1635.8,1635.6,5.64477]
[1744599404320,3.0,1635.8,1635.6,5.64463]
[1744599405054,3.0,1635.8,1635.6,10.53568]
[1744599405421,3.0,1635.8,1635.6,5.64463]
[1744599405752,3.0,1635.8,1635.6,5.64462]
[1744599406057,4.88941,1636.2,1635.9,4.89016]
[1744599406551,3.0,1636.1,1635.9,4.89016]
[1744599406943,3.0,1636.1,1635.7,4.89082]
[1744599407139,7.88981,1636.1,1635.7,4.89082]
[1744599407343,12.77978,1636.1,1635.7,4.89071]
[1744599407651,4.89037,1635.9,1635.6,0.7536]
[1744599407824,4.89037,1635.9,1635.6,5.64474]
[1744599408221,5.65197,1635.9,1635.6,4.89114]
[1744599409354,0.7616,1635.9,1635.4,0.7536]
[1744599409547,4.8909,1635.7,1635.4,0.7536]
[1744599409854,4.8909,1635.7,1635.4,5.64531]
[1744599410654,4.89085,1635.8,1635.4,5.64536]
[1744599410827,11.135883,1635.8,1635.4,5.64536]
[1744599411458,4.89098,1635.7,1635.3,4.89201]
[1744599411665,11.135543,1635.8,1635.3,4.89193]
[1744599411954,6.244873,1635.8,1635.4,4.89165]
[1744599412456,8.6519,1635.9,1635.2,5.66003]
[1744599412657,3.0,1635.9,1635.6,4.89105]
[1744599412962,3.0,1635.9,1635.7,4.89085]
[1744599413455,3.0,1635.9,1635.6,4.89105]
[1744599413861,3.0,1635.9,1635.6,9.78208]
[1744599414034,3.0,1635.9,1635.6,4.89103]
[1744599414757,7.89027,1635.9,1635.6,4.89103]
[1744599414960,4.89092,1635.7,1635.4,4.89172]
[1744599415461,4.89086,1635.8,1635.4,9.78336]
[1744599415660,4.89086,1635.8,1635.5,4.89143]
[1744599416361,3.0,1635.8,1635.5,4.89136]
[1744599416539,3.0,1635.8,1635.6,4.89094]
[1744599416934,3.0,1635.8,1635.6,9.78197]
[1744599417371,3.0,1635.8,1635.6,4.89094]
[1744599418753,4.88999,1636.0,1635.6,5.65864]
[1744599418963,3.0,1635.9,1635.7,4.89087]
[1744599420363,8.679269,1635.9,1635.6,0.7677]
[1744599420535,13.569799,1635.9,1635.5,4.89147]
[1744599420737,8.679269,1635.9,1635.5,9.78278]
[1744599421039,8.679269,1635.9,1635.5,9.78264]
[1744599421769,8.679269,1635.9,1635.6,4.89113]
[1744599422931,8.679269,1635.9,1635.5,4.89131]
[1744599423138,9.78258,1635.6,1635.2,5.66003]
[1744599423374,1.6415269,1635.8,1634.8,6.16]
[1744599423375,1.6415269,1635.8,1635.0,10.55347]
[1744599423536,1.6415269,1635.8,1634.8,6.16]
[1744599423537,7.89218,1635.3,1634.9,9.78637]
[1744599423876,9.247938,1635.3,1634.9,9.78637]
[1744599424035,12.78447,1635.3,1634.9,4.89313]
[1744599424229,12.78445,1635.3,1634.9,4.89313]
[1744599424866,4.89237,1635.2,1634.9,4.89313]
[1744599425069,4.89237,1635.2,1634.8,10.55461]
[1744599425376,3.0,1635.3,1635.0,4.89272]
[1744599426172,7.89218,1635.3,1634.9,4.89323]
[1744599426668,3.0,1635.3,1635.0,4.89295]
[1744599426867,3.0,1635.3,1635.2,4.89236]
[1744599427570,3.0,1635.3,1635.1,4.89257]
[1744599427768,3.0,1635.3,1635.1,9.78511]
[1744599428066,3.0,1635.3,1635.0,0.978603]
[1744599428067,8.066,1635.5,1635.3,4.89206]
[1744599428270,12.95747,1635.5,1635.2,4.89234]
[1744599428474,12.95747,1635.5,1635.1,4.89262]
[1744599429281,12.95747,1635.5,1635.1,9.78512]
[1744599429481,12.95747,1635.5,1635.1,4.8925]
[1744599429770,15.042337,1635.5,1635.1,9.785]
[1744599429984,17.84916,1635.5,1635.1,4.8925]
[1744599430141,12.95747,1635.5,1635.1,4.8925]
[1744599430569,4.89181,1635.4,1635.0,6.675943]
[1744599430769,4.89181,1635.4,1635.1,4.89264]
[1744599430955,0.7736,1635.3,1634.8,0.8044]
[1744599431154,0.7736,1635.3,1635.0,4.89282]
[1744599431362,4.89243,1635.2,1634.8,5.69783]
[1744599431562,8.66578,1635.3,1634.9,9.78622]
[1744599431942,8.66567,1635.3,1635.0,4.89289]
[1744599432176,14.913707,1635.3,1634.8,5.69787]
[1744599432358,5.129347,1635.3,1634.8,5.69787]
[1744599432557,9.78512,1635.2,1634.8,5.69787]
[1744599432857,4.89249,1635.2,1634.8,5.69787]
[1744599433282,9.7851,1635.2,1634.8,5.69787]
[1744599433492,9.78505,1635.2,1634.8,5.69787]
[1744599433691,3.7736,1635.3,1634.6,0.8044]
[1744599433896,3.66970649,1635.4,1634.3,7.89479]
[1744599433897,4.89354,1634.9,1634.4,4.89474]
[1744599434102,9.78695,1634.9,1634.5,4.89443]
[1744599434257,3.0,1634.8,1634.5,4.89443]
[1744599434460,5.66768,1634.7,1634.3,5.69945]
[1744599434678,5.66768,1634.7,1634.3,10.59438]
[1744599434865,5.66768,1634.7,1634.4,4.89474]
[1744599435276,5.66768,1634.7,1634.3,11.653658]
[1744599435460,0.7736,1634.7,1634.3,1.863838]
[1744599435650,7.8936,1634.8,1634.4,4.89455]
[1744599435865,7.8936,1634.8,1634.4,9.78913]
[1744599436281,4.89251,1635.2,1634.6,3.92410649]
[1744599436282,0.7736,1635.2,1634.6,3.92410649]
[1744599436484,5.66558,1635.4,1635.0,9.78557]